fUST/lending_fUST_20240720
["ID","MTS","AMOUNT","RATE_DAILY","PERIOD"]
[332725176,1721483445245,-500.0,0.00016438,2]
[332725177,1721483445254,-500.0,0.00016438,2]
[332725178,1721483445264,-500.0,0.00016438,2]
[332725179,1721483445274,-500.0,0.00016438,2]
[332725180,1721483445283,-500.0,0.00016438,2]
[332725181,1721483445292,-500.0,0.00016438,2]
[332725182,1721483445301,-500.0,0.00016438,2]
[332725183,1721483445311,-500.0,0.00016438,2]
[332725184,1721483445320,-500.0,0.00016438,2]
[332725185,1721483445329,-500.0,0.00016438,2]
[332725186,1721483445338,-500.0,0.00016438,2]
[332725187,1721483445347,-500.0,0.00016438,2]
[332725188,1721483445356,-500.0,0.00016438,2]
[332725189,1721483445365,-500.0,0.00016438,2]
[332725190,1721483445375,-500.0,0.00016438,2]
[332725191,1721483445384,-676.92,0.00016438,2]
[332725192,1721483445393,-500.0,0.00016438,2]
[332725193,1721483445402,-500.0,0.00016438,2]
[332725194,1721483445413,-500.0,0.00016438,2]
[332725195,1721483445423,-500.0,0.00016438,2]
[332725196,1721483445434,-500.0,0.00016438,2]
[332725197,1721483445443,-2274.6,0.00016438,2]
[332725198,1721483445452,-578.66,0.00016438,2]
[332725199,1721483445462,-719.56,0.00016438,2]
[332725200,1721483445471,-1149.96,0.00016438,2]
[332725201,1721483445481,-2574.89,0.00016438,2]
[332725202,1721483445491,-601.52472544,0.00016438,2]
[332725203,1721483445501,-500.0,0.00016438,2]
[332725204,1721483445510,-624.99,0.00016438,2]
[332725205,1721483445519,-505.7857432,0.00016438,2]
[332725206,1721483445529,-500.0,0.00016438,2]
[332725207,1721483445540,-500.0,0.00016438,2]
[332725208,1721483445549,-962.44,0.00016438,2]
[332725209,1721483445560,-500.0,0.00016438,2]
[332725210,1721483445571,-500.0,0.00016438,2]
[332725211,1721483445582,-4341.13,0.00016438,2]
[332725212,1721483445592,-505.02529902,0.00016438,2]
[332725213,1721483445601,-219.41559619,0.00016438,2]
[332725214,1721483445613,-625.22,0.00016438,2]
[332725215,1721483445623,-500.0,0.00016438,2]
[332725216,1721483445633,-500.0,0.00016438,2]
[332725217,1721483445643,-500.0,0.00016438,2]
[332725218,1721483445653,-500.0,0.00016438,2]
[332725219,1721483445662,-669.26,0.00016438,2]
[332725220,1721483445671,-2309.79,0.00016438,2]
[332725221,1721483445680,-551.69,0.00016438,2]
[332725222,1721483445691,-5882.91,0.00016438,2]
[332725223,1721483445701,-9923.21,0.00016438,2]
[332725224,1721483445712,-2408.58,0.00016438,2]
[332725225,1721483445723,-500.0,0.00016438,2]
[332725226,1721483445734,-500.0,0.00016438,2]
[332725227,1721483445743,-21100.96,0.00016438,2]
[332725228,1721483445753,-508.89,0.00016438,2]
[332725229,1721483445763,-508.80795726,0.00016438,2]
[332725230,1721483445773,-622.35,0.00016438,2]
[332725231,1721483445782,-501.29419541,0.00016438,2]
[332725232,1721483445792,-636.52390275,0.00016438,2]
[332725233,1721483445802,-500.0,0.00016438,2]
[332725234,1721483445811,-500.0,0.00016438,2]
[332725235,1721483445821,-529.26846187,0.00016438,2]
[332725236,1721483445831,-3043.52,0.00016438,2]
[332725237,1721483445840,-500.87068412,0.00016438,2]
[332725238,1721483445850,-676.78,0.00016438,2]
[332725239,1721483445859,-7978.4,0.00016438,2]
[332725240,1721483445869,-500.0,0.00016438,2]
[332725241,1721483445878,-500.0,0.00016438,2]
[332725242,1721483445887,-533.4,0.00016438,2]
[332725243,1721483445896,-3395.63,0.00016438,2]
[332725244,1721483445906,-6166.2,0.00016438,2]
[332725245,1721483445916,-500.0,0.00016438,2]
[332725246,1721483445925,-500.0,0.00016438,2]
[332725247,1721483445936,-452.41416163,0.00016438,2]
[332725248,1721483445946,-3240.75,0.00016438,2]
[332725249,1721483445955,-500.0,0.00016438,2]
[332725250,1721483445965,-219.09698425,0.00016438,2]
[332725251,1721483445975,-1616.11,0.00016438,2]
[332725252,1721483445987,-5214.15,0.00016438,2]
[332725253,1721483446002,-518.88361912,0.00016438,2]
[332725254,1721483446015,-308.2405451,0.00016438,2]
[332725255,1721483446024,-504.76781749,0.00016438,2]
[332725256,1721483446034,-500.0,0.00016438,2]
[332725257,1721483446045,-500.0,0.00016438,2]
[332725258,1721483446054,-193.47418578,0.00016438,2]
[332725259,1721483446063,-1287.43,0.00016438,2]
[332725260,1721483446073,-500.0,0.00016438,2]
[332725261,1721483446082,-500.0,0.00016438,2]
[332725262,1721483446092,-1248.16,0.00016438,2]
[332725263,1721483446101,-500.0,0.00016438,2]
[332725264,1721483446110,-500.0,0.00016438,2]
[332725265,1721483446119,-3504.96,0.00016438,2]
[332725266,1721483446128,-500.0,0.00016438,2]
[332725267,1721483446137,-821.08,0.00016438,2]
[332725268,1721483446146,-500.0,0.00016438,2]
[332725269,1721483446156,-505.46201646,0.00016438,2]
[332725270,1721483446165,-500.0,0.00016438,2]
[332725271,1721483446174,-679.89,0.00016438,2]
[332725272,1721483446185,-500.0,0.00016438,2]
[332725273,1721483446194,-500.0,0.00016438,2]
[332725274,1721483446203,-500.0,0.00016438,2]
[332725275,1721483446212,-500.0,0.00016438,2]
[332725276,1721483446221,-500.0,0.00016438,2]
[332725277,1721483446230,-500.0,0.00016438,2]
[332725278,1721483446240,-620.24190846,0.00016438,2]
[332725279,1721483446249,-521.03,0.00016438,2]
[332725280,1721483446259,-500.0,0.00016438,2]
[332725281,1721483446268,-504.24,0.00016438,2]
[332725282,1721483446278,-500.0,0.00016438,2]
[332725283,1721483446287,-500.0,0.00016438,2]
[332725284,1721483446296,-2381.51,0.00016438,2]
[332725285,1721483446306,-1268.13,0.00016438,2]
[332725286,1721483446315,-618.28186363,0.00016438,2]
[332725287,1721483446324,-500.0,0.00016438,2]
[332725288,1721483446334,-500.0,0.00016438,2]
[332725289,1721483446343,-500.0,0.00016438,2]
[332725290,1721483446352,-500.0,0.00016438,2]
[332725291,1721483446361,-500.0,0.00016438,2]
[332725292,1721483446370,-500.0,0.00016438,2]
[332725294,1721483446379,-355.50504189,0.00016438,2]
[332725295,1721483446388,-1480.09,0.00016438,2]
[332725296,1721483446397,-1677.64,0.00016438,2]
[332725297,1721483446406,-3777.23,0.00016438,2]
[332725298,1721483446415,-500.0,0.00016438,2]
[332725299,1721483446424,-500.0,0.00016438,2]
[332725300,1721483446437,-500.0,0.00016438,2]
[332725301,1721483446447,-500.0,0.00016438,2]
[332725302,1721483446455,-509.82043443,0.00016438,2]
[332725303,1721483446465,-993.56,0.00016438,2]
[332725304,1721483446474,-500.0,0.00016438,2]
[332725305,1721483446484,-258.57234386,0.00016438,2]
[332725306,1721483446493,-150.0,0.00016438,2]
[332725307,1721483446502,-2114.0,0.00016438,2]
[332725308,1721483446511,-503.08165892,0.00016438,2]
[332725309,1721483446520,-504.74873459,0.00016438,2]
[332725310,1721483446530,-500.0,0.00016438,2]
[332725311,1721483446539,-2285.66,0.00016438,2]
[332725313,1721483446549,-500.0,0.00016438,2]
[332725315,1721483446558,-500.0,0.00016438,2]
[332725316,1721483446567,-12991.66,0.00016438,2]
[332725317,1721483446576,-500.0,0.00016438,2]
[332725318,1721483446586,-500.0,0.00016438,2]
[332725319,1721483446595,-1395.86,0.00016438,2]
[332725321,1721483446605,-3910.65,0.00016438,2]
[332725323,1721483446614,-500.0,0.00016438,2]
[332725325,1721483446624,-500.0,0.00016438,2]
[332725326,1721483446633,-784.28,0.00016438,2]
[332725327,1721483446641,-3087.66,0.00016438,2]
[332725328,1721483446649,-251.95448152,0.00016438,2]
[332725329,1721483446657,-570.19,0.00016438,2]
[332725330,1721483446666,-802.26,0.00016438,2]
[332725331,1721483446674,-1654.19,0.00016438,2]
[332725332,1721483446684,-3451.03,0.00016438,2]
[332725333,1721483446693,-3451.03,0.00016438,2]
[332725334,1721483446702,-3451.03,0.00016438,2]
[332725335,1721483446711,-3451.03,0.00016438,2]
[332725337,1721483446720,-500.0,0.00016438,2]
[332725339,1721483446729,-3451.03,0.00016438,2]
[332725341,1721483446739,-3451.03,0.00016438,2]
[332725343,1721483446749,-500.0,0.00016438,2]
[332725345,1721483446758,-3451.03,0.00016438,2]
[332725346,1721483446768,-3451.03,0.00016438,2]
[332725347,1721483446777,-3451.03,0.00016438,2]
[332725348,1721483446786,-3451.03,0.00016438,2]
[332725349,1721483446795,-381.21198987,0.00016438,2]
[332725350,1721483446805,-3451.03,0.00016438,2]
[332725351,1721483446815,-3451.03,0.00016438,2]
[332725352,1721483446824,-3451.03,0.00016438,2]
[332725353,1721483446833,-1696.37,0.00016438,2]
[332725354,1721483446842,-515.45,0.00016438,2]
[332725355,1721483446852,-3451.03,0.00016438,2]
[332725356,1721483446861,-3451.03,0.00016438,2]
[332725357,1721483446870,-3451.03,0.00016438,2]
[332725358,1721483446879,-500.0,0.00016438,2]
[332725359,1721483446889,-3451.03,0.00016438,2]
[332725360,1721483446898,-3451.03,0.00016438,2]
[332725361,1721483446907,-3451.03,0.00016438,2]
[332725362,1721483446917,-3451.03,0.00016438,2]
[332725363,1721483446926,-3451.03,0.00016438,2]
[332725364,1721483446937,-3451.03,0.00016438,2]
[332725365,1721483446946,-3451.03,0.00016438,2]
[332725366,1721483446960,-500.0,0.00016438,2]
[332725367,1721483446973,-3451.08169912,0.00016438,2]
[332725368,1721483446986,-500.0,0.00016438,2]
[332725369,1721483446999,-1164.47,0.00016438,2]
[332725370,1721483447013,-500.0,0.00016438,2]
[332725371,1721483447024,-503.33,0.00016438,2]
[332725372,1721483447035,-10196.05,0.00016438,2]
[332725373,1721483447048,-16715.23,0.00016438,2]
[332725374,1721483447060,-1326.31,0.00016438,2]
[332725375,1721483447073,-500.0,0.00016438,2]
[332725376,1721483447085,-924.33,0.00016438,2]
[332725377,1721483447097,-1271.8,0.00016438,2]
[332725378,1721483447111,-524.82,0.00016438,2]
[332725379,1721483447122,-2876.26,0.00016438,2]
[332725380,1721483447135,-861.51,0.00016438,2]
[332725381,1721483447147,-1115.51,0.00016438,2]
[332725382,1721483447161,-500.0,0.00016438,2]
[332725383,1721483447174,-500.0,0.00016438,2]
[332725384,1721483447189,-182.45544952,0.00016438,2]
[332725385,1721483447200,-345.18233406,0.00016438,2]
[332725386,1721483447212,-15276.58,0.00016438,2]
[332725387,1721483447224,-15276.58,0.00016438,2]
[332725388,1721483447236,-15276.58,0.00016438,2]
[332725389,1721483447248,-15276.58,0.00016438,2]
[332725390,1721483447261,-564.55397441,0.00016438,2]
[332725391,1721483447273,-568.38256445,0.00016438,2]
[332725392,1721483447285,-3054.03,0.00016438,2]
[332725393,1721483447296,-500.0,0.00016438,2]
[332725394,1721483447306,-15276.58,0.00016438,2]
[332725395,1721483447317,-193.22353054,0.00016438,2]
[332725396,1721483447330,-15276.58,0.00016438,2]
[332725397,1721483447341,-9290.47423838,0.00016438,2]
[332725398,1721483447895,547.3958726,0.00014615,2]
[332725399,1721483448404,-153.0,0.000157,2]
[332725400,1721483448416,-500.0,0.00015708,2]
[332725401,1721483448429,-194.64773322,0.00015708,2]
[332725402,1721483448440,-1977.34902978,0.00015744,2]
[332725403,1721483448455,-277.21615124,0.00015744,2]
[332725404,1721483449001,-9635.93595369,0.00015712,2]
[332725405,1721483449012,-171.7497494,0.00015744,2]
[332725406,1721483449025,-5986.10576162,0.00016438,2]
[332725407,1721483449037,-14151.83922439,0.00016438,2]
[332725408,1721483449060,-1124.74077561,0.00016438,2]
[332725409,1721483449070,-15276.58,0.00016438,2]
[332725410,1721483449084,-500.0,0.00016438,2]
[332725411,1721483449096,-15276.58,0.00016438,2]
[332725412,1721483449109,-15276.58,0.00016438,2]
[332725413,1721483449121,-15276.58,0.00016438,2]
[332725414,1721483449132,-15276.58,0.00016438,2]
[332725415,1721483449145,-1361.3,0.00016438,2]
[332725416,1721483449159,-15276.58,0.00016438,2]
[332725417,1721483449171,-15276.58,0.00016438,2]
[332725418,1721483449184,-15276.58,0.00016438,2]
[332725419,1721483449195,-15276.58,0.00016438,2]
[332725420,1721483449207,-15276.58,0.00016438,2]
[332725421,1721483449220,-46521.77,0.00016438,2]
[332725422,1721483449230,-15276.58,0.00016438,2]
[332725423,1721483449241,-15276.58,0.00016438,2]
[332725424,1721483449252,-15276.58,0.00016438,2]
[332725425,1721483449265,-658.17,0.00016438,2]
[332725426,1721483449277,-15276.58,0.00016438,2]
[332725427,1721483449289,-15276.58,0.00016438,2]
[332725428,1721483449300,-500.0,0.00016438,2]
[332725429,1721483449312,-500.0,0.00016438,2]
[332725430,1721483449324,-15276.58823212,0.00016438,2]
[332725431,1721483449335,-2577.52,0.00016438,2]
[332725432,1721483449346,-536.85,0.00016438,2]
[332725433,1721483449358,-500.0,0.00016438,2]
[332725434,1721483449371,-500.0,0.00016438,2]
[332725435,1721483449382,-1959.43,0.00016438,2]
[332725436,1721483449395,-500.0,0.00016438,2]
[332725437,1721483449406,-500.0,0.00016438,2]
[332725438,1721483449417,-714.79,0.00016438,2]
[332725439,1721483449427,-500.0,0.00016438,2]
[332725440,1721483449438,-500.0,0.00016438,2]
[332725441,1721483449448,-3122.93,0.00016438,2]
[332725442,1721483449457,-515.56,0.00016438,2]
[332725443,1721483449467,-517.86875508,0.00016438,2]
[332725444,1721483449478,-612.19,0.00016438,2]
[332725445,1721483449489,-500.0,0.00016438,2]
[332725446,1721483449499,-500.0,0.00016438,2]
[332725447,1721483449509,-2459.39,0.00016438,2]
[332725448,1721483449520,-500.0,0.00016438,2]
[332725449,1721483449531,-500.0,0.00016438,2]
[332725450,1721483449542,-502.89288554,0.00016438,2]
[332725451,1721483449554,-500.0,0.00016438,2]
[332725452,1721483449564,-500.0,0.00016438,2]
[332725453,1721483449574,-570.76,0.00016438,2]
[332725454,1721483449585,-500.0,0.00016438,2]
[332725455,1721483449597,-502.69132394,0.00016438,2]
[332725456,1721483449607,-907.87,0.00016438,2]
[332725457,1721483449617,-621.01,0.00016438,2]
[332725458,1721483449628,-500.0,0.00016438,2]
[332725459,1721483449637,-501.98939057,0.00016438,2]
[332725460,1721483449648,-500.0,0.00016438,2]
[332725461,1721483449659,-151.0,0.00016438,2]
[332725462,1721483449669,-151.0,0.00016438,2]
[332725463,1721483449680,-151.0,0.00016438,2]
[332725464,1721483449691,-155.805248,0.00016438,2]
[332725465,1721483449700,-208.895031,0.00016438,2]
[332725466,1721483449712,-151.0,0.00016438,2]
[332725467,1721483449723,-151.0,0.00016438,2]
[332725468,1721483449733,-151.0,0.00016438,2]
[332725469,1721483449743,-151.0,0.00016438,2]
[332725470,1721483449753,-151.0,0.00016438,2]
[332725471,1721483449762,-151.0,0.00016438,2]
[332725472,1721483449772,-151.0,0.00016438,2]
[332725473,1721483450038,-151.0,0.00016438,2]
[332725474,1721483450152,-292.881714,0.00016438,2]
[332725475,1721483450171,-151.0,0.00016438,2]
[332725476,1721483450186,-151.0,0.00016438,2]
[332725477,1721483450196,-151.0,0.00016438,2]
[332725478,1721483450208,-151.0,0.00016438,2]
[332725479,1721483450219,-151.0,0.00016438,2]
[332725480,1721483450229,-151.0,0.00016438,2]
[332725481,1721483450239,-151.0,0.00016438,2]
[332725482,1721483450249,-151.0,0.00016438,2]
[332725483,1721483450259,-151.0,0.00016438,2]
[332725484,1721483450270,-151.0,0.00016438,2]
[332725485,1721483450281,-151.0,0.00016438,2]
[332725486,1721483450291,-151.0,0.00016438,2]
[332725487,1721483450303,-291.935818,0.00016438,2]
[332725488,1721483450312,-151.0,0.00016438,2]
[332725489,1721483450322,-151.0,0.00016438,2]
[332725490,1721483450333,-151.0,0.00016438,2]
[332725491,1721483450343,-151.0,0.00016438,2]
[332725492,1721483450354,-151.0,0.00016438,2]
[332725493,1721483450365,-151.0,0.00016438,2]
[332725494,1721483450374,-151.0,0.00016438,2]
[332725495,1721483450384,-151.0,0.00016438,2]
[332725496,1721483450395,-151.0,0.00016438,2]
[332725497,1721483450406,-151.0,0.00016438,2]
[332725498,1721483450417,-151.0,0.00016438,2]
[332725499,1721483450426,-151.0,0.00016438,2]
[332725500,1721483450436,-151.0,0.00016438,2]
[332725501,1721483450446,-151.0,0.00016438,2]
[332725502,1721483450456,-151.0,0.00016438,2]
[332725503,1721483450465,-293.035198,0.00016438,2]
[332725504,1721483450474,-152.34684,0.00016438,2]
[332725505,1721483450484,-362.287318,0.00016438,2]
[332725506,1721483450494,-362.287318,0.00016438,2]
[332725507,1721483450503,-362.287318,0.00016438,2]
[332725508,1721483450512,-362.287318,0.00016438,2]
[332725509,1721483450522,-362.287318,0.00016438,2]
[332725510,1721483450531,-362.287318,0.00016438,2]
[332725511,1721483450540,-362.287318,0.00016438,2]
[332725512,1721483450549,-362.287318,0.00016438,2]
[332725513,1721483450558,-362.287318,0.00016438,2]
[332725514,1721483450568,-362.287318,0.00016438,2]
[332725515,1721483450577,-362.287318,0.00016438,2]
[332725516,1721483450586,-362.287318,0.00016438,2]
[332725517,1721483450595,-362.287318,0.00016438,2]
[332725518,1721483450605,-362.287318,0.00016438,2]
[332725519,1721483450615,-362.287318,0.00016438,2]
[332725520,1721483450624,-362.287318,0.00016438,2]
[332725521,1721483450634,-362.287318,0.00016438,2]
[332725522,1721483450644,-362.287318,0.00016438,2]
[332725523,1721483450654,-362.287318,0.00016438,2]
[332725524,1721483450664,-362.287319,0.00016438,2]
[332725525,1721483450674,-151.0,0.00016438,2]
[332725526,1721483450686,-151.0,0.00016438,2]
[332725527,1721483450698,-151.0,0.00016438,2]
[332725528,1721483450711,-151.0,0.00016438,2]
[332725529,1721483450722,-151.0,0.00016438,2]
[332725530,1721483450732,-151.0,0.00016438,2]
[332725531,1721483450742,-165.031709,0.00016438,2]
[332725532,1721483450752,-173.997995,0.00016438,2]
[332725533,1721483450762,-173.997995,0.00016438,2]
[332725534,1721483450771,-173.997995,0.00016438,2]
[332725535,1721483450781,-173.997995,0.00016438,2]
[332725536,1721483450791,-173.997995,0.00016438,2]
[332725537,1721483450801,-173.997995,0.00016438,2]
[332725538,1721483450810,-173.997995,0.00016438,2]
[332725539,1721483450820,-173.997995,0.00016438,2]
[332725540,1721483450830,-173.997995,0.00016438,2]
[332725541,1721483450839,-173.997995,0.00016438,2]
[332725542,1721483450849,-173.997995,0.00016438,2]
[332725543,1721483450859,-173.997995,0.00016438,2]
[332725544,1721483450869,-173.997995,0.00016438,2]
[332725545,1721483450879,-173.997995,0.00016438,2]
[332725546,1721483450889,-255.823033,0.00016438,2]
[332725547,1721483450898,-173.997995,0.00016438,2]
[332725548,1721483450908,-255.823033,0.00016438,2]
[332725549,1721483450918,-173.997995,0.00016438,2]
[332725550,1721483450928,-255.823033,0.00016438,2]
[332725551,1721483450938,-173.997995,0.00016438,2]
[332725552,1721483450948,-255.823033,0.00016438,2]
[332725553,1721483450958,-173.997995,0.00016438,2]
[332725554,1721483450968,-173.997995,0.00016438,2]
[332725555,1721483450978,-255.823033,0.00016438,2]
[332725556,1721483450988,-173.997999,0.00016438,2]
[332725557,1721483450998,-255.823033,0.00016438,2]
[332725558,1721483451010,-255.823033,0.00016438,2]
[332725559,1721483451019,-255.823033,0.00016438,2]
[332725560,1721483451028,-255.823033,0.00016438,2]
[332725561,1721483451037,-255.823033,0.00016438,2]
[332725562,1721483451047,-255.823033,0.00016438,2]
[332725563,1721483451056,-255.823033,0.00016438,2]
[332725564,1721483451065,-255.823033,0.00016438,2]
[332725565,1721483451075,-255.823033,0.00016438,2]
[332725566,1721483451085,-255.823033,0.00016438,2]
[332725567,1721483451095,-255.823033,0.00016438,2]
[332725568,1721483451105,-255.823033,0.00016438,2]
[332725569,1721483451114,-255.823033,0.00016438,2]
[332725570,1721483451124,-255.823033,0.00016438,2]
[332725571,1721483451133,-255.823031,0.00016438,2]
[332725572,1721483451142,-151.316749,0.00016438,2]
[332725573,1721483451152,-151.0,0.00016438,2]
[332725574,1721483451161,-151.0,0.00016438,2]
[332725575,1721483451170,-151.0,0.00016438,2]
[332725576,1721483451179,-151.0,0.00016438,2]
[332725577,1721483451189,-151.0,0.00016438,2]
[332725578,1721483451198,-151.0,0.00016438,2]
[332725579,1721483451208,-151.0,0.00016438,2]
[332725580,1721483451218,-151.0,0.00016438,2]
[332725581,1721483451227,-151.0,0.00016438,2]
[332725582,1721483451237,-151.0,0.00016438,2]
[332725583,1721483451246,-151.0,0.00016438,2]
[332725584,1721483451255,-151.0,0.00016438,2]
[332725585,1721483451265,-151.0,0.00016438,2]
[332725586,1721483451274,-151.0,0.00016438,2]
[332725587,1721483451283,-151.0,0.00016438,2]
[332725588,1721483451293,-151.0,0.00016438,2]
[332725589,1721483451303,-151.0,0.00016438,2]
[332725590,1721483451312,-151.0,0.00016438,2]
[332725591,1721483451322,-151.0,0.00016438,2]
[332725592,1721483451332,-163.203199,0.00016438,2]
[332725593,1721483451341,-151.0,0.00016438,2]
[332725594,1721483451350,-151.0,0.00016438,2]
[332725595,1721483451359,-151.0,0.00016438,2]
[332725596,1721483451369,-151.0,0.00016438,2]
[332725597,1721483451378,-245.442649,0.00016438,2]
[332725598,1721483451388,-412.044283,0.00016438,2]
[332725599,1721483451398,-412.044283,0.00016438,2]
[332725600,1721483451408,-412.044283,0.00016438,2]
[332725601,1721483451419,-412.044283,0.00016438,2]
[332725602,1721483451428,-412.044283,0.00016438,2]
[332725603,1721483451441,-412.044283,0.00016438,2]
[332725604,1721483451450,-412.044283,0.00016438,2]
[332725605,1721483451461,-412.044283,0.00016438,2]
[332725606,1721483451470,-412.044283,0.00016438,2]
[332725607,1721483451479,-412.044283,0.00016438,2]
[332725608,1721483451490,-412.044283,0.00016438,2]
[332725609,1721483451499,-412.044283,0.00016438,2]
[332725610,1721483451508,-412.044283,0.00016438,2]
[332725611,1721483451517,-412.044283,0.00016438,2]
[332725612,1721483451526,-412.044283,0.00016438,2]
[332725613,1721483451536,-412.044283,0.00016438,2]
[332725614,1721483451545,-412.044283,0.00016438,2]
[332725615,1721483451555,-412.044283,0.00016438,2]
[332725616,1721483451564,-615.727295,0.00016438,2]
[332725617,1721483451573,-412.044283,0.00016438,2]
[332725618,1721483451584,-615.727295,0.00016438,2]
[332725619,1721483451593,-412.044275,0.00016438,2]
[332725620,1721483451604,-615.727295,0.00016438,2]
[332725621,1721483451614,-615.727295,0.00016438,2]
[332725622,1721483451625,-615.727295,0.00016438,2]
[332725623,1721483451634,-615.727295,0.00016438,2]
[332725624,1721483451644,-615.727295,0.00016438,2]
[332725625,1721483451654,-615.727295,0.00016438,2]
[332725626,1721483451663,-615.727295,0.00016438,2]
[332725627,1721483451673,-615.727295,0.00016438,2]
[332725628,1721483451683,-615.727295,0.00016438,2]
[332725629,1721483451694,-615.727295,0.00016438,2]
[332725630,1721483451703,-615.727295,0.00016438,2]
[332725631,1721483451712,-321.727875,0.00016438,2]
[332725632,1721483451721,-615.727295,0.00016438,2]
[332725633,1721483451731,-321.727875,0.00016438,2]
[332725634,1721483451740,-615.727295,0.00016438,2]
[332725635,1721483451750,-321.727875,0.00016438,2]
[332725636,1721483451760,-615.727295,0.00016438,2]
[332725637,1721483451769,-321.727875,0.00016438,2]
[332725638,1721483451779,-321.727875,0.00016438,2]
[332725639,1721483451789,-615.727295,0.00016438,2]
[332725640,1721483451799,-321.727875,0.00016438,2]
[332725641,1721483451808,-615.727295,0.00016438,2]
[332725642,1721483451818,-321.727875,0.00016438,2]
[332725643,1721483451827,-615.727295,0.00016438,2]
[332725644,1721483451837,-321.727875,0.00016438,2]
[332725645,1721483451847,-615.727286,0.00016438,2]
[332725646,1721483451856,-321.727875,0.00016438,2]
[332725647,1721483451865,-321.727875,0.00016438,2]
[332725648,1721483451874,-321.727875,0.00016438,2]
[332725649,1721483451883,-321.727875,0.00016438,2]
[332725650,1721483451893,-321.727875,0.00016438,2]
[332725651,1721483451902,-321.727875,0.00016438,2]
[332725652,1721483451911,-321.727875,0.00016438,2]
[332725653,1721483451920,-321.727875,0.00016438,2]
[332725654,1721483451929,-321.727875,0.00016438,2]
[332725655,1721483451941,-321.727875,0.00016438,2]
[332725656,1721483451950,-321.727875,0.00016438,2]
[332725657,1721483451959,-321.727875,0.00016438,2]
[332725658,1721483451968,-303.696456,0.00016438,2]
[332725659,1721483451977,-303.696456,0.00016438,2]
[332725660,1721483451986,-303.696456,0.00016438,2]
[332725661,1721483451997,-303.696456,0.00016438,2]
[332725662,1721483452006,-303.696456,0.00016438,2]
[332725663,1721483452015,-303.696456,0.00016438,2]
[332725664,1721483452024,-303.696456,0.00016438,2]
[332725665,1721483452033,-303.696456,0.00016438,2]
[332725666,1721483452043,-303.696456,0.00016438,2]
[332725667,1721483452053,-303.696456,0.00016438,2]
[332725668,1721483452064,-303.696456,0.00016438,2]
[332725669,1721483452074,-303.696456,0.00016438,2]
[332725670,1721483452085,-303.696456,0.00016438,2]
[332725671,1721483452094,-303.696456,0.00016438,2]
[332725672,1721483452103,-303.696456,0.00016438,2]
[332725673,1721483452113,-303.696456,0.00016438,2]
[332725674,1721483452123,-303.696456,0.00016438,2]
[332725675,1721483452133,-303.696456,0.00016438,2]
[332725676,1721483452143,-303.696456,0.00016438,2]
[332725677,1721483452152,-303.696454,0.00016438,2]
[332725678,1721483452162,-189.870779,0.00016438,2]
[332725679,1721483452172,-189.870779,0.00016438,2]
[332725680,1721483452182,-189.870779,0.00016438,2]
[332725681,1721483452198,-189.870779,0.00016438,2]
[332725682,1721483452207,-189.870779,0.00016438,2]
[332725683,1721483452218,-189.870779,0.00016438,2]
[332725684,1721483452227,-189.870779,0.00016438,2]
[332725685,1721483452236,-189.870779,0.00016438,2]
[332725686,1721483452246,-189.870779,0.00016438,2]